[Event "January 9 Late 2024"]
[Site "https://www.chess.com"]
[Date "2024.01.09"]
[Round "4"]
[White "Ivanisevic, Ivan"]
[Black "Hakobyan, Aram"]
[Result "0-1"]
[Board "20"]
[TimeControl "180+1"]
[WhiteFideId "912417"]
[BlackFideId "13306677"]
[WhiteElo "2760"]
[BlackElo "3007"]
[WhiteTeam "SRB"]
[BlackTeam "ARM"]
[WhiteClock "0:00:01"]
[BlackClock "0:00:30"]

1. d4 {[%clk 0:03:00]}  Nf6 {[%clk 0:02:59]} 2. Nf3 {[%clk 0:03:01]}  e6 {[%clk 0:02:55]} 3. Bg5 {[%clk 0:02:59]}  h6 {[%clk 0:02:53]} 4. Bxf6 {[%clk 0:02:58]}  Qxf6 {[%clk 0:02:54]} 5. e4 {[%clk 0:02:58]}  d6 {[%clk 0:02:53]} 6. c3 {[%clk 0:02:58]}  g6 {[%clk 0:02:52]} 7. a4 {[%clk 0:02:58]}  Bg7 {[%clk 0:02:52]} 8. a5 {[%clk 0:02:57]}  O-O {[%clk 0:02:51]} 9. Na3 {[%clk 0:02:55]}  a6 {[%clk 0:02:50]} 10. Nc2 {[%clk 0:02:46]}  Qe7 {[%clk 0:02:46]} 11. Ne3 {[%clk 0:02:42]}  Nd7 {[%clk 0:02:44]} 12. Bc4 {[%clk 0:02:36]}  b5 {[%clk 0:02:23]} 13. axb6 {[%clk 0:02:24]}  cxb6 {[%clk 0:02:24]} 14. h4 {[%clk 0:02:21]}  Bb7 {[%clk 0:02:23]} 15. Qc2 {[%clk 0:02:20]}  b5 {[%clk 0:02:22]} 16. Ba2 {[%clk 0:02:19]}  Kh8 {[%clk 0:02:19]} 17. h5 {[%clk 0:02:13]}  g5 {[%clk 0:02:19]} 18. Bb1 {[%clk 0:01:45]}  Nf6 {[%clk 0:01:38]} 19. e5 {[%clk 0:01:44]}  Ne4 {[%clk 0:01:38]} 20. Nd2 {[%clk 0:01:37]}  f5 {[%clk 0:01:36]} 21. exf6 {[%clk 0:01:33]}  Nxf6 {[%clk 0:01:35]} 22. O-O {[%clk 0:01:28]}  Qf7 {[%clk 0:01:18]} 23. Ng4 {[%clk 0:01:14]}  Bd5 {[%clk 0:01:10]} 24. f4 {[%clk 0:01:11]}  gxf4 {[%clk 0:01:02]} 25. Rxf4 {[%clk 0:01:09]}  Ra7 {[%clk 0:01:02]} 26. Nxf6 {[%clk 0:00:36]}  Bxf6 {[%clk 0:01:01]} 27. Ne4 {[%clk 0:00:36]}  Qg7 {[%clk 0:00:44]} 28. Nxf6 {[%clk 0:00:36]}  Rxf6 {[%clk 0:00:44]} 29. Rxf6 {[%clk 0:00:36]}  Qxf6 {[%clk 0:00:45]} 30. Rxa6 {[%clk 0:00:36]}  Rg7 {[%clk 0:00:38]} 31. Rxd6 {[%clk 0:00:08]}  Rxg2+ {[%clk 0:00:38]} 32. Qxg2 {[%clk 0:00:09]}  Bxg2 {[%clk 0:00:39]} 33. Kxg2 {[%clk 0:00:10]}  Qg5+ {[%clk 0:00:29]} 34. Kf3 {[%clk 0:00:10]}  Qxh5+ {[%clk 0:00:30]} 35. Ke3 {[%clk 0:00:08]}  Qh3+ {[%clk 0:00:30]} 36. Ke2 {[%clk 0:00:01]}  Qh2+ {[%clk 0:00:30]} 0-1

[Event "January 9 Late 2024"]
[Site "https://www.chess.com"]
[Date "2024.01.09"]
[Round "4"]
[White "Korchmar, Vasiliy"]
[Black "Shankland, Sam"]
[Result "1-0"]
[Board "21"]
[TimeControl "180+1"]
[WhiteFideId "24131750"]
[BlackFideId "2004887"]
[WhiteElo "2738"]
[BlackElo "2998"]
[WhiteTeam "RUS"]
[BlackTeam "USA"]
[WhiteClock "0:00:03"]
[BlackClock "0:00:16"]

1. e4 {[%clk 0:03:00]}  c5 {[%clk 0:02:59]} 2. d4 {[%clk 0:03:01]}  cxd4 {[%clk 0:02:58]} 3. Qxd4 {[%clk 0:03:02]}  Nc6 {[%clk 0:02:58]} 4. Qd3 {[%clk 0:03:02]}  g6 {[%clk 0:02:57]} 5. Nc3 {[%clk 0:03:02]}  Bg7 {[%clk 0:02:57]} 6. Nf3 {[%clk 0:03:03]}  Nf6 {[%clk 0:02:57]} 7. Be2 {[%clk 0:03:04]}  d6 {[%clk 0:02:56]} 8. O-O {[%clk 0:03:04]}  O-O {[%clk 0:02:52]} 9. Nd5 {[%clk 0:03:04]}  Be6 {[%clk 0:02:46]} 10. c3 {[%clk 0:03:04]}  Rc8 {[%clk 0:02:44]} 11. Bg5 {[%clk 0:02:55]}  Nd7 {[%clk 0:02:42]} 12. Qe3 {[%clk 0:02:54]}  Re8 {[%clk 0:02:33]} 13. h4 {[%clk 0:02:48]}  Nf6 {[%clk 0:02:27]} 14. Rad1 {[%clk 0:02:30]}  Ng4 {[%clk 0:02:25]} 15. Qc1 {[%clk 0:02:25]}  h6 {[%clk 0:02:21]} 16. Bf4 {[%clk 0:02:24]}  h5 {[%clk 0:02:17]} 17. Ng5 {[%clk 0:02:21]}  Bxd5 {[%clk 0:02:16]} 18. Bxg4 {[%clk 0:02:01]}  Bxa2 {[%clk 0:02:01]} 19. Bxc8 {[%clk 0:01:57]}  Qxc8 {[%clk 0:02:02]} 20. Qc2 {[%clk 0:01:29]}  Bc4 {[%clk 0:01:50]} 21. Rfe1 {[%clk 0:01:28]}  Qg4 {[%clk 0:01:49]} 22. Bg3 {[%clk 0:01:21]}  Rc8 {[%clk 0:01:45]} 23. b3 {[%clk 0:01:03]}  Ba6 {[%clk 0:01:38]} 24. Qd2 {[%clk 0:00:56]}  Bf6 {[%clk 0:01:21]} 25. c4 {[%clk 0:00:54]}  Nd4 {[%clk 0:01:18]} 26. Re3 {[%clk 0:00:43]}  Bxg5 {[%clk 0:01:17]} 27. hxg5 {[%clk 0:00:41]}  e5 {[%clk 0:01:17]} 28. Rd3 {[%clk 0:00:34]}  h4 {[%clk 0:01:12]} 29. Rxd4 {[%clk 0:00:34]}  exd4 {[%clk 0:01:09]} 30. Bxd6 {[%clk 0:00:34]}  Re8 {[%clk 0:00:46]} 31. f3 {[%clk 0:00:30]}  Qe6 {[%clk 0:00:44]} 32. Qxd4 {[%clk 0:00:28]}  h3 {[%clk 0:00:42]} 33. Qf6 {[%clk 0:00:21]}  hxg2 {[%clk 0:00:37]} 34. Kxg2 {[%clk 0:00:20]}  Qxf6 {[%clk 0:00:35]} 35. gxf6 {[%clk 0:00:20]}  Rd8 {[%clk 0:00:35]} 36. e5 {[%clk 0:00:17]}  Rd7 {[%clk 0:00:34]} 37. f4 {[%clk 0:00:15]}  b6 {[%clk 0:00:34]} 38. Kf3 {[%clk 0:00:14]}  Bb7+ {[%clk 0:00:34]} 39. Ke3 {[%clk 0:00:15]}  Bg2 {[%clk 0:00:33]} 40. f5 {[%clk 0:00:13]}  Bh3 {[%clk 0:00:27]} 41. fxg6 {[%clk 0:00:13]}  fxg6 {[%clk 0:00:27]} 42. Kf4 {[%clk 0:00:11]}  Bf5 {[%clk 0:00:23]} 43. b4 {[%clk 0:00:06]}  Rh7 {[%clk 0:00:22]} 44. c5 {[%clk 0:00:05]}  Rh4+ {[%clk 0:00:21]} 45. Ke3 {[%clk 0:00:04]}  Rxb4 {[%clk 0:00:20]} 46. c6 {[%clk 0:00:04]}  Rc4 {[%clk 0:00:20]} 47. c7 {[%clk 0:00:04]}  Kf7 {[%clk 0:00:21]} 48. Rh1 {[%clk 0:00:04]}  g5 {[%clk 0:00:21]} 49. Rh8 {[%clk 0:00:03]}  g4 {[%clk 0:00:20]} 50. Rf8+ {[%clk 0:00:03]}  Kg6 {[%clk 0:00:20]} 51. Rg8+ {[%clk 0:00:03]}  Kf7 {[%clk 0:00:19]} 52. Rg7+ {[%clk 0:00:03]}  Ke6 {[%clk 0:00:19]} 53. f7 {[%clk 0:00:02]}  Re4+ {[%clk 0:00:18]} 54. Kd2 {[%clk 0:00:02]}  Rd4+ {[%clk 0:00:18]} 55. Kc3 {[%clk 0:00:02]}  Rd3+ {[%clk 0:00:18]} 56. Kc4 {[%clk 0:00:03]}  b5+ {[%clk 0:00:18]} 57. Kxb5 {[%clk 0:00:03]}  Kd5 {[%clk 0:00:18]} 58. f8=Q {[%clk 0:00:03]}  Rb3+ {[%clk 0:00:16]} 59. Ka4 {[%clk 0:00:03]} 1-0

[Event "January 9 Late 2024"]
[Site "https://www.chess.com"]
[Date "2024.01.09"]
[Round "4"]
[White "Vachier-Lagrave, Maxime"]
[Black "Kadric, Denis"]
[Result "0-1"]
[Board "25"]
[TimeControl "180+1"]
[WhiteFideId "623539"]
[BlackFideId "14403803"]
[WhiteElo "3157"]
[BlackElo "2879"]
[WhiteTeam "FRA"]
[BlackTeam "MNE"]
[WhiteClock "0:00:20"]
[BlackClock "0:00:20"]

1. e4 {[%clk 0:03:00]}  d6 {[%clk 0:02:59]} 2. d4 {[%clk 0:03:00]}  Nf6 {[%clk 0:02:59]} 3. Nc3 {[%clk 0:03:01]}  e5 {[%clk 0:03:00]} 4. Nge2 {[%clk 0:02:59]}  Nbd7 {[%clk 0:03:00]} 5. h3 {[%clk 0:02:59]}  h5 {[%clk 0:03:01]} 6. g3 {[%clk 0:02:57]}  c6 {[%clk 0:03:01]} 7. Bg2 {[%clk 0:02:54]}  Be7 {[%clk 0:03:02]} 8. O-O {[%clk 0:02:53]}  b5 {[%clk 0:03:02]} 9. a3 {[%clk 0:02:52]}  Bb7 {[%clk 0:03:03]} 10. Be3 {[%clk 0:02:52]}  Qc7 {[%clk 0:03:03]} 11. Qd2 {[%clk 0:02:52]}  O-O {[%clk 0:03:03]} 12. f4 {[%clk 0:02:51]}  Rfe8 {[%clk 0:03:03]} 13. Rad1 {[%clk 0:02:51]}  Bf8 {[%clk 0:03:02]} 14. Kh1 {[%clk 0:02:48]}  a5 {[%clk 0:03:02]} 15. dxe5 {[%clk 0:02:40]}  dxe5 {[%clk 0:03:02]} 16. f5 {[%clk 0:02:41]}  b4 {[%clk 0:02:55]} 17. Na4 {[%clk 0:02:38]}  c5 {[%clk 0:02:56]} 18. Bg5 {[%clk 0:02:28]}  Bc6 {[%clk 0:02:49]} 19. b3 {[%clk 0:02:27]}  Nxe4 {[%clk 0:02:48]} 20. Qe3 {[%clk 0:02:26]}  Nxg5 {[%clk 0:02:19]} 21. Qxg5 {[%clk 0:02:27]}  Nf6 {[%clk 0:02:13]} 22. Nb2 {[%clk 0:02:22]}  bxa3 {[%clk 0:02:09]} 23. Nc4 {[%clk 0:02:22]}  a2 {[%clk 0:02:07]} 24. Nc3 {[%clk 0:02:21]}  e4 {[%clk 0:01:37]} 25. Nxa2 {[%clk 0:02:15]}  a4 {[%clk 0:01:32]} 26. Nc3 {[%clk 0:02:15]}  axb3 {[%clk 0:01:32]} 27. cxb3 {[%clk 0:02:16]}  Rab8 {[%clk 0:01:32]} 28. Rb1 {[%clk 0:02:12]}  Rb4 {[%clk 0:01:20]} 29. Na2 {[%clk 0:01:49]}  Rb7 {[%clk 0:01:20]} 30. Rfe1 {[%clk 0:01:43]}  Reb8 {[%clk 0:01:15]} 31. Nc1 {[%clk 0:01:40]}  Bd5 {[%clk 0:01:09]} 32. Ra1 {[%clk 0:01:37]}  Bxc4 {[%clk 0:00:56]} 33. bxc4 {[%clk 0:01:38]}  Qe5 {[%clk 0:00:55]} 34. Ne2 {[%clk 0:01:36]}  Rb2 {[%clk 0:00:54]} 35. Rad1 {[%clk 0:01:26]}  R8b3 {[%clk 0:00:45]} 36. Nf4 {[%clk 0:01:21]}  Bd6 {[%clk 0:00:33]} 37. Ra1 {[%clk 0:01:00]}  Rb8 {[%clk 0:00:26]} 38. Rad1 {[%clk 0:00:53]}  R2b3 {[%clk 0:00:24]} 39. Ra1 {[%clk 0:00:33]}  Rc3 {[%clk 0:00:22]} 40. Rad1 {[%clk 0:00:30]}  Rbb3 {[%clk 0:00:20]} 41. Ne2 {[%clk 0:00:25]}  Rd3 {[%clk 0:00:20]} 42. Rxd3 {[%clk 0:00:20]}  exd3 {[%clk 0:00:20]} 0-1

[Event "January 9 Late 2024"]
[Site "https://www.chess.com"]
[Date "2024.01.09"]
[Round "4"]
[White "Gokerkan, Cem Kaan"]
[Black "Naroditsky, Daniel"]
[Result "1-0"]
[Board "26"]
[TimeControl "180+1"]
[WhiteFideId "6336760"]
[BlackFideId "2026961"]
[WhiteElo "2814"]
[BlackElo "3150"]
[WhiteTeam "TUR"]
[BlackTeam "USA"]
[WhiteClock "0:00:06"]
[BlackClock "0:00:01"]

1. e4 {[%clk 0:03:00]}  Nf6 {[%clk 0:02:57]} 2. e5 {[%clk 0:03:01]}  Nd5 {[%clk 0:02:57]} 3. d4 {[%clk 0:03:01]}  d6 {[%clk 0:02:58]} 4. c4 {[%clk 0:03:01]}  Nb6 {[%clk 0:02:58]} 5. f4 {[%clk 0:03:02]}  dxe5 {[%clk 0:02:59]} 6. fxe5 {[%clk 0:03:03]}  Bf5 {[%clk 0:02:59]} 7. Nc3 {[%clk 0:03:03]}  e6 {[%clk 0:03:00]} 8. Nf3 {[%clk 0:03:01]}  Bb4 {[%clk 0:03:01]} 9. Bd3 {[%clk 0:02:58]}  c5 {[%clk 0:02:47]} 10. Bxf5 {[%clk 0:02:32]}  cxd4 {[%clk 0:02:47]} 11. Nxd4 {[%clk 0:01:56]}  exf5 {[%clk 0:02:43]} 12. Nxf5 {[%clk 0:01:56]}  Qxd1+ {[%clk 0:02:36]} 13. Kxd1 {[%clk 0:01:57]}  O-O {[%clk 0:02:34]} 14. Nd5 {[%clk 0:01:27]}  Rd8 {[%clk 0:02:18]} 15. Kc2 {[%clk 0:01:28]}  Nxd5 {[%clk 0:02:02]} 16. Rd1 {[%clk 0:01:27]}  Nc6 {[%clk 0:01:58]} 17. cxd5 {[%clk 0:01:21]}  Nxe5 {[%clk 0:01:54]} 18. Bf4 {[%clk 0:01:17]}  Ng6 {[%clk 0:01:45]} 19. Bg3 {[%clk 0:01:17]}  Ne7 {[%clk 0:01:40]} 20. Nxe7+ {[%clk 0:01:11]}  Bxe7 {[%clk 0:01:41]} 21. d6 {[%clk 0:01:11]}  Rac8+ {[%clk 0:01:28]} 22. Kb3 {[%clk 0:01:10]}  Bf6 {[%clk 0:01:23]} 23. Rac1 {[%clk 0:01:09]}  Kf8 {[%clk 0:00:55]} 24. Rc7 {[%clk 0:01:06]}  Rxc7 {[%clk 0:00:42]} 25. dxc7 {[%clk 0:01:07]}  Rc8 {[%clk 0:00:42]} 26. Re1 {[%clk 0:00:53]}  Be7 {[%clk 0:00:35]} 27. Kc4 {[%clk 0:00:51]}  f6 {[%clk 0:00:27]} 28. Kd5 {[%clk 0:00:48]}  Kf7 {[%clk 0:00:27]} 29. Bd6 {[%clk 0:00:40]}  Bf8 {[%clk 0:00:27]} 30. Bxf8 {[%clk 0:00:37]}  Rxc7 {[%clk 0:00:28]} 31. Bd6 {[%clk 0:00:28]}  Rc2 {[%clk 0:00:27]} 32. Re7+ {[%clk 0:00:28]}  Kg6 {[%clk 0:00:28]} 33. Rxb7 {[%clk 0:00:29]}  Rxg2 {[%clk 0:00:28]} 34. Rxa7 {[%clk 0:00:29]}  Rxb2 {[%clk 0:00:26]} 35. a4 {[%clk 0:00:29]}  Kf5 {[%clk 0:00:23]} 36. a5 {[%clk 0:00:29]}  g5 {[%clk 0:00:23]} 37. a6 {[%clk 0:00:29]}  Ra2 {[%clk 0:00:23]} 38. Kc4 {[%clk 0:00:23]}  Ke6 {[%clk 0:00:22]} 39. Kb3 {[%clk 0:00:22]}  Rd2 {[%clk 0:00:10]} 40. Bb8 {[%clk 0:00:17]}  Rd1 {[%clk 0:00:06]} 41. Rb7 {[%clk 0:00:16]}  Ra1 {[%clk 0:00:02]} 42. a7 {[%clk 0:00:16]}  Kd5 {[%clk 0:00:03]} 43. Rb4 {[%clk 0:00:15]}  Kc6 {[%clk 0:00:02]} 44. Rc4+ {[%clk 0:00:10]}  Kb7 {[%clk 0:00:03]} 45. Re4 {[%clk 0:00:10]}  h5 {[%clk 0:00:02]} 46. Re7+ {[%clk 0:00:10]}  Ka8 {[%clk 0:00:02]} 47. Rf7 {[%clk 0:00:10]}  Ra6 {[%clk 0:00:02]} 48. Kb4 {[%clk 0:00:10]}  g4 {[%clk 0:00:03]} 49. Kb5 {[%clk 0:00:10]}  Re6 {[%clk 0:00:03]} 50. Bg3 {[%clk 0:00:08]}  f5 {[%clk 0:00:01]} 51. Bf2 {[%clk 0:00:06]}  Re5+ {[%clk 0:00:01]} 52. Bc5 {[%clk 0:00:06]}  Re6 {[%clk 0:00:01]} 53. Rf8+ {[%clk 0:00:06]} 1-0

[Event "January 9 Late 2024"]
[Site "https://www.chess.com"]
[Date "2024.01.09"]
[Round "4"]
[White "Kozak, Adam"]
[Black "Kokoszczynski, Jan"]
[Result "0-1"]
[Board "33"]
[TimeControl "180+1"]
[WhiteFideId "753246"]
[BlackFideId "1174460"]
[WhiteElo "2886"]
[BlackElo "2579"]
[WhiteTeam "HUN"]
[BlackTeam "POL"]
[WhiteClock "0:00:03"]
[BlackClock "0:00:07"]

1. c4 {[%clk 0:02:41]}  e5 {[%clk 0:02:57]} 2. a3 {[%clk 0:02:38]}  Nc6 {[%clk 0:02:54]} 3. b4 {[%clk 0:02:37]}  g6 {[%clk 0:02:44]} 4. Bb2 {[%clk 0:02:34]}  Bg7 {[%clk 0:02:43]} 5. h4 {[%clk 0:02:22]}  h5 {[%clk 0:02:41]} 6. e3 {[%clk 0:02:21]}  d6 {[%clk 0:02:37]} 7. Nf3 {[%clk 0:02:20]}  Bg4 {[%clk 0:02:36]} 8. Be2 {[%clk 0:02:20]}  Nh6 {[%clk 0:02:32]} 9. Nc3 {[%clk 0:02:19]}  O-O {[%clk 0:02:31]} 10. Ng5 {[%clk 0:02:19]}  Kh8 {[%clk 0:01:58]} 11. Qc2 {[%clk 0:02:07]}  Bf5 {[%clk 0:01:50]} 12. d3 {[%clk 0:02:04]}  a5 {[%clk 0:01:44]} 13. b5 {[%clk 0:02:03]}  Nb8 {[%clk 0:01:40]} 14. Nce4 {[%clk 0:02:00]}  Nd7 {[%clk 0:01:40]} 15. O-O-O {[%clk 0:01:58]}  Qe7 {[%clk 0:01:38]} 16. f3 {[%clk 0:01:57]}  c6 {[%clk 0:01:34]} 17. g4 {[%clk 0:01:57]}  d5 {[%clk 0:01:27]} 18. gxf5 {[%clk 0:01:53]}  Nxf5 {[%clk 0:01:28]} 19. Nc3 {[%clk 0:01:46]}  Nxe3 {[%clk 0:01:27]} 20. Qd2 {[%clk 0:01:46]}  d4 {[%clk 0:01:15]} 21. Nce4 {[%clk 0:01:37]}  f5 {[%clk 0:01:15]} 22. bxc6 {[%clk 0:01:30]}  bxc6 {[%clk 0:01:13]} 23. Ng3 {[%clk 0:01:18]}  Nc5 {[%clk 0:01:11]} 24. Kb1 {[%clk 0:01:18]}  Rfb8 {[%clk 0:01:11]} 25. Ka2 {[%clk 0:01:17]}  Rb3 {[%clk 0:00:55]} 26. Rb1 {[%clk 0:01:14]}  Rab8 {[%clk 0:00:30]} 27. Nf1 {[%clk 0:01:13]}  Na4 {[%clk 0:00:25]} 28. Nxe3 {[%clk 0:00:32]}  Nxb2 {[%clk 0:00:25]} 29. Qxa5 {[%clk 0:00:24]}  dxe3 {[%clk 0:00:22]} 30. Bd1 {[%clk 0:00:15]}  R3b7 {[%clk 0:00:21]} 31. Bc2 {[%clk 0:00:13]}  Ra7 {[%clk 0:00:14]} 32. Qc3 {[%clk 0:00:04]}  Bf8 {[%clk 0:00:09]} 33. c5 {[%clk 0:00:04]}  Bg7 {[%clk 0:00:08]} 34. f4 {[%clk 0:00:02]}  exf4 {[%clk 0:00:07]} 35. d4 {[%clk 0:00:02]}  e2 {[%clk 0:00:07]} 36. Bb3 {[%clk 0:00:02]}  Na4 {[%clk 0:00:06]} 37. Qd3 {[%clk 0:00:02]}  Rba8 {[%clk 0:00:05]} 38. Nf7+ {[%clk 0:00:02]}  Kh7 {[%clk 0:00:05]} 39. Ng5+ {[%clk 0:00:03]}  Kh6 {[%clk 0:00:06]} 40. Nf7+ {[%clk 0:00:03]}  Kh7 {[%clk 0:00:07]} 41. Ng5+ {[%clk 0:00:03]}  Kh8 {[%clk 0:00:07]} 42. Rhe1 {[%clk 0:00:03]}  Nxc5 {[%clk 0:00:06]} 43. dxc5 {[%clk 0:00:03]}  Rxa3# {[%clk 0:00:07]} 0-1

[Event "January 9 Late 2024"]
[Site "https://www.chess.com"]
[Date "2024.01.09"]
[Round "4"]
[White "Sevian, Samuel"]
[Black "Silvestre, Christian"]
[Result "1-0"]
[Board "35"]
[TimeControl "180+1"]
[WhiteFideId "2040506"]
[BlackFideId "30956269"]
[WhiteElo "3138"]
[BlackElo "2309"]
[WhiteTeam "USA"]
[BlackTeam "USA"]
[WhiteClock "0:01:59"]
[BlackClock "0:00:00"]

1. e4 {[%clk 0:03:00]}  c6 {[%clk 0:02:55]} 2. d4 {[%clk 0:02:59]}  d5 {[%clk 0:02:55]} 3. e5 {[%clk 0:02:59]}  a6 {[%clk 0:02:55]} 4. h4 {[%clk 0:02:58]}  c5 {[%clk 0:02:55]} 5. dxc5 {[%clk 0:02:56]}  Nc6 {[%clk 0:02:52]} 6. Bf4 {[%clk 0:02:52]}  Qa5+ {[%clk 0:02:49]} 7. c3 {[%clk 0:02:52]}  Qxc5 {[%clk 0:02:48]} 8. Nd2 {[%clk 0:02:52]}  e6 {[%clk 0:02:46]} 9. Ngf3 {[%clk 0:02:52]}  Nge7 {[%clk 0:02:43]} 10. h5 {[%clk 0:02:50]}  h6 {[%clk 0:02:29]} 11. Bd3 {[%clk 0:02:50]}  Qb6 {[%clk 0:02:25]} 12. Nb3 {[%clk 0:02:49]}  Na5 {[%clk 0:02:22]} 13. O-O {[%clk 0:02:48]}  Nxb3 {[%clk 0:02:21]} 14. axb3 {[%clk 0:02:48]}  Bd7 {[%clk 0:02:19]} 15. Re1 {[%clk 0:02:48]}  Nc6 {[%clk 0:02:17]} 16. b4 {[%clk 0:02:48]}  Be7 {[%clk 0:02:16]} 17. Qd2 {[%clk 0:02:45]}  Na7 {[%clk 0:02:08]} 18. Be3 {[%clk 0:02:37]}  Qc7 {[%clk 0:02:07]} 19. Bf4 {[%clk 0:02:30]}  Bb5 {[%clk 0:02:04]} 20. Bc2 {[%clk 0:02:30]}  Rc8 {[%clk 0:01:53]} 21. Nd4 {[%clk 0:02:29]}  Bd7 {[%clk 0:01:52]} 22. Nf5 {[%clk 0:02:26]}  Bf8 {[%clk 0:01:32]} 23. Rad1 {[%clk 0:02:16]}  Nb5 {[%clk 0:01:22]} 24. Qe3 {[%clk 0:02:08]}  Rg8 {[%clk 0:01:11]} 25. Qg3 {[%clk 0:02:08]}  d4 {[%clk 0:00:40]} 26. Nxh6 {[%clk 0:01:59]}  Rh8 {[%clk 0:00:39]} 27. Nxf7 {[%clk 0:01:58]}  Kxf7 {[%clk 0:00:39]} 28. Qg6+ {[%clk 0:01:58]}  Kg8 {[%clk 0:00:00]} 29. h6 {[%clk 0:01:59]} 1-0

[Event "January 9 Late 2024"]
[Site "https://www.chess.com"]
[Date "2024.01.09"]
[Round "4"]
[White "Keymer, Vincent"]
[Black "Xhembulla, Aleksander"]
[Result "1-0"]
[Board "36"]
[TimeControl "180+1"]
[WhiteFideId "12940690"]
[BlackFideId "4705114"]
[WhiteElo "3048"]
[BlackElo "2635"]
[WhiteTeam "GER"]
[BlackTeam "ALB"]
[WhiteClock "0:00:44"]
[BlackClock "0:00:00"]

1. a3 {[%clk 0:02:46]}  e5 {[%clk 0:02:53]} 2. c4 {[%clk 0:02:45]}  g6 {[%clk 0:02:50]} 3. b4 {[%clk 0:02:44]}  Bg7 {[%clk 0:02:50]} 4. Bb2 {[%clk 0:02:45]}  d6 {[%clk 0:02:49]} 5. g3 {[%clk 0:02:44]}  Nc6 {[%clk 0:02:49]} 6. Bg2 {[%clk 0:02:44]}  Nf6 {[%clk 0:02:50]} 7. Nc3 {[%clk 0:02:44]}  O-O {[%clk 0:02:50]} 8. e3 {[%clk 0:02:43]}  Be6 {[%clk 0:02:49]} 9. Nd5 {[%clk 0:02:39]}  Re8 {[%clk 0:02:47]} 10. Ne2 {[%clk 0:02:39]}  Rb8 {[%clk 0:02:43]} 11. O-O {[%clk 0:02:38]}  Nd7 {[%clk 0:02:23]} 12. d3 {[%clk 0:02:28]}  Ne7 {[%clk 0:02:22]} 13. e4 {[%clk 0:02:22]}  c6 {[%clk 0:02:19]} 14. Nxe7+ {[%clk 0:02:21]}  Qxe7 {[%clk 0:02:18]} 15. f4 {[%clk 0:02:22]}  exf4 {[%clk 0:02:00]} 16. Bxg7 {[%clk 0:02:21]}  Kxg7 {[%clk 0:02:00]} 17. gxf4 {[%clk 0:02:22]}  Bg4 {[%clk 0:02:00]} 18. Qd2 {[%clk 0:02:16]}  Bxe2 {[%clk 0:01:58]} 19. Qxe2 {[%clk 0:02:17]}  c5 {[%clk 0:01:52]} 20. Rae1 {[%clk 0:02:10]}  Nf8 {[%clk 0:01:52]} 21. Bh3 {[%clk 0:01:44]}  Ne6 {[%clk 0:01:41]} 22. Bxe6 {[%clk 0:01:43]}  Qxe6 {[%clk 0:01:42]} 23. Qb2+ {[%clk 0:01:37]}  Kg8 {[%clk 0:01:34]} 24. f5 {[%clk 0:01:29]}  Qe5 {[%clk 0:01:32]} 25. Qf2 {[%clk 0:01:24]}  gxf5 {[%clk 0:01:21]} 26. Qxf5 {[%clk 0:01:22]}  Qxf5 {[%clk 0:01:17]} 27. Rxf5 {[%clk 0:01:23]}  b6 {[%clk 0:01:17]} 28. Ref1 {[%clk 0:01:21]}  Rb7 {[%clk 0:01:18]} 29. R1f3 {[%clk 0:01:08]}  Re6 {[%clk 0:01:17]} 30. h4 {[%clk 0:01:03]}  a5 {[%clk 0:01:14]} 31. b5 {[%clk 0:01:02]}  Re5 {[%clk 0:01:07]} 32. Rxe5 {[%clk 0:00:56]}  dxe5 {[%clk 0:01:07]} 33. Rf6 {[%clk 0:00:57]}  Rd7 {[%clk 0:01:00]} 34. Rxb6 {[%clk 0:00:54]}  Rxd3 {[%clk 0:01:00]} 35. Rc6 {[%clk 0:00:54]}  Rxa3 {[%clk 0:00:54]} 36. Rxc5 {[%clk 0:00:54]}  Rb3 {[%clk 0:00:49]} 37. Kf2 {[%clk 0:00:49]}  a4 {[%clk 0:00:49]} 38. Ke2 {[%clk 0:00:44]}  f6 {[%clk 0:00:39]} 39. Rc7 {[%clk 0:00:40]}  a3 {[%clk 0:00:30]} 40. Kd2 {[%clk 0:00:40]}  Kf8 {[%clk 0:00:08]} 41. Rxh7 {[%clk 0:00:38]}  Rh3 {[%clk 0:00:08]} 42. b6 {[%clk 0:00:36]}  Rb3 {[%clk 0:00:06]} 43. c5 {[%clk 0:00:36]}  Rb5 {[%clk 0:00:04]} 44. Ra7 {[%clk 0:00:34]}  Rxc5 {[%clk 0:00:03]} 45. b7 {[%clk 0:00:34]}  Rb5 {[%clk 0:00:02]} 46. Ra8+ {[%clk 0:00:34]}  Kg7 {[%clk 0:00:03]} 47. b8=Q {[%clk 0:00:35]}  Rxb8 {[%clk 0:00:03]} 48. Rxb8 {[%clk 0:00:36]}  Kh6 {[%clk 0:00:04]} 49. Ra8 {[%clk 0:00:36]}  Kh5 {[%clk 0:00:05]} 50. Rxa3 {[%clk 0:00:36]}  Kxh4 {[%clk 0:00:06]} 51. Rf3 {[%clk 0:00:37]}  Kg5 {[%clk 0:00:05]} 52. Rf5+ {[%clk 0:00:38]}  Kg6 {[%clk 0:00:05]} 53. Kd3 {[%clk 0:00:38]}  Kf7 {[%clk 0:00:06]} 54. Kc4 {[%clk 0:00:39]}  Ke7 {[%clk 0:00:06]} 55. Kc5 {[%clk 0:00:40]}  Ke6 {[%clk 0:00:07]} 56. Kc6 {[%clk 0:00:41]}  Ke7 {[%clk 0:00:07]} 57. Kd5 {[%clk 0:00:42]}  Kf7 {[%clk 0:00:08]} 58. Kd6 {[%clk 0:00:43]}  Kg6 {[%clk 0:00:08]} 59. Ke6 {[%clk 0:00:44]}  Kg7 {[%clk 0:00:09]} 60. Rxf6 {[%clk 0:00:44]}  Kg8 {[%clk 0:00:09]} 61. Rg6+ {[%clk 0:00:44]}  Kf8 {[%clk 0:00:00]} 62. Rg5 {[%clk 0:00:44]} 1-0

[Event "January 9 Late 2024"]
[Site "https://www.chess.com"]
[Date "2024.01.09"]
[Round "4"]
[White "Bjelobrk, Igor"]
[Black "Fressinet, Laurent"]
[Result "0-1"]
[Board "41"]
[TimeControl "180+1"]
[WhiteFideId "4300726"]
[BlackFideId "608742"]
[WhiteElo "2618"]
[BlackElo "2967"]
[WhiteTeam "AUS"]
[BlackTeam "FRA"]
[WhiteClock "0:00:15"]
[BlackClock "0:01:39"]

1. d4 {[%clk 0:03:00]}  Nf6 {[%clk 0:02:56]} 2. c4 {[%clk 0:03:00]}  e5 {[%clk 0:02:55]} 3. dxe5 {[%clk 0:03:00]}  Ne4 {[%clk 0:02:56]} 4. Nd2 {[%clk 0:02:56]}  Nc5 {[%clk 0:02:52]} 5. Ngf3 {[%clk 0:02:54]}  Nc6 {[%clk 0:02:52]} 6. g3 {[%clk 0:02:53]}  d6 {[%clk 0:02:50]} 7. exd6 {[%clk 0:02:47]}  Bxd6 {[%clk 0:02:51]} 8. Bg2 {[%clk 0:02:48]}  h5 {[%clk 0:02:50]} 9. h4 {[%clk 0:02:37]}  Qe7 {[%clk 0:02:49]} 10. O-O {[%clk 0:02:37]}  Bg4 {[%clk 0:02:49]} 11. a3 {[%clk 0:02:33]}  O-O-O {[%clk 0:02:48]} 12. b4 {[%clk 0:02:31]}  Be5 {[%clk 0:02:44]} 13. Rb1 {[%clk 0:01:57]}  Ne4 {[%clk 0:02:42]} 14. Nxe4 {[%clk 0:01:54]}  Rxd1 {[%clk 0:02:43]} 15. Rxd1 {[%clk 0:01:55]}  Bf5 {[%clk 0:02:38]} 16. Nxe5 {[%clk 0:01:16]}  Nxe5 {[%clk 0:02:39]} 17. Bf4 {[%clk 0:00:54]}  Ng6 {[%clk 0:02:21]} 18. Nc5 {[%clk 0:00:39]}  Nxf4 {[%clk 0:02:14]} 19. Bxb7+ {[%clk 0:00:39]}  Kb8 {[%clk 0:02:14]} 20. gxf4 {[%clk 0:00:40]}  Bxb1 {[%clk 0:02:12]} 21. Rxb1 {[%clk 0:00:41]}  Qxh4 {[%clk 0:02:05]} 22. e3 {[%clk 0:00:39]}  Qg4+ {[%clk 0:02:00]} 23. Kf1 {[%clk 0:00:38]}  Rd8 {[%clk 0:01:59]} 24. Bd5 {[%clk 0:00:34]}  h4 {[%clk 0:01:51]} 25. b5 {[%clk 0:00:20]}  h3 {[%clk 0:01:42]} 26. Na6+ {[%clk 0:00:20]}  Kc8 {[%clk 0:01:41]} 27. a4 {[%clk 0:00:19]}  Rxd5 {[%clk 0:01:38]} 28. cxd5 {[%clk 0:00:15]}  h2 {[%clk 0:01:39]} 0-1